fUSD/lending_fUSD_20251129
["ID","MTS","AMOUNT","RATE_DAILY","PERIOD"]
[395119509,1764456646339,-998.25,0.00017489,2]
[395119510,1764456646351,-984.4121911,0.0001749,2]
[395119511,1764456646360,-334.5472959,0.00017518,2]
[395119512,1764456646369,-277.35679052,0.00017518,2]
[395119513,1764456646379,-311.1,0.00017518,2]
[395119514,1764456646389,-300.0,0.0001752,2]
[395119515,1764456646399,-1000.0,0.00017521,2]
[395119516,1764456646407,-1000.0,0.00017521,2]
[395119517,1764456646417,-1000.0,0.00017521,2]
[395119518,1764456646426,-1000.0,0.00017521,2]
[395119519,1764456646435,-338.57088426,0.00017521,2]
[395119520,1764456646444,-1000.0,0.00017521,2]
[395119521,1764456646453,-1000.0,0.00017521,2]
[395119522,1764456646462,-1000.0,0.00017521,2]
[395119523,1764456646472,-1000.0,0.00017521,2]
[395119524,1764456646481,-1000.0,0.00017521,2]
[395119525,1764456646491,-1039.82653192,0.00017521,2]
[395119526,1764456646499,-231.63969334,0.00017521,2]
[395119527,1764456646508,-500.0,0.00017521,2]
[395119528,1764456646517,-1000.0,0.00017521,2]
[395119529,1764456646526,-1000.0,0.00017521,2]
[395119530,1764456646535,-1115.51796754,0.00017521,2]
[395119531,1764456646544,-165.98212225,0.00017521,2]
[395119532,1764456646553,-1000.0,0.00017521,2]
[395119533,1764456646562,-1000.0,0.00017521,2]
[395119534,1764456646571,-1000.0,0.00017521,2]
[395119535,1764456646580,-1000.0,0.00017521,2]
[395119536,1764456646589,-1000.0,0.00017521,2]
[395119537,1764456646602,-1000.0,0.00017521,2]
[395119538,1764456646611,-1000.0,0.00017521,2]
[395119539,1764456646620,-1000.0,0.00017521,2]
[395119540,1764456646630,-1000.0,0.00017521,2]
[395119541,1764456646639,-1000.0,0.00017521,2]
[395119542,1764456646648,-1000.0,0.00017521,2]
[395119543,1764456646657,-1000.0,0.00017521,2]
[395119544,1764456646666,-452.21585205,0.00017534,2]
[395119545,1764456646675,-664.0,0.00017573,2]
[395119546,1764456646685,-500.0,0.00017573,2]
[395119547,1764456646694,-4051.0,0.00017577,2]
[395119548,1764456646703,-264.26,0.00017599,2]
[395119549,1764456646712,-2000.0,0.00017616,2]
[395119550,1764456646722,-2000.0,0.00017616,2]
[395119551,1764456646731,-1824.24405167,0.00017616,2]
[395119552,1764456646740,-2043.587836,0.00017616,2]
[395119553,1764456646749,-2000.0,0.00017616,2]
[395119554,1764456646758,-2000.0,0.00017616,2]
[395119555,1764456646767,-587.0,0.00017623,2]
[395119556,1764456646776,-1410.0,0.000177,2]
[395119557,1764456646785,-664.0,0.0001771,2]
[395119558,1764456646794,-500.0,0.0001771,2]
[395119559,1764456646803,-3526.0,0.0001772,2]
[395119560,1764456646812,-168.0,0.00017721,2]
[395119561,1764456646821,-182.96,0.00017741,2]
[395119562,1764456646829,-998.26,0.00017763,2]
[395119563,1764456646838,-2351.0,0.00017792,2]
[395119564,1764456646847,-1000.0,0.00017793,2]
[395119565,1764456646857,-547.75274217,0.00017794,2]
[395119566,1764456646866,-500.0,0.00017794,2]
[395119567,1764456646875,-168.0,0.00017801,2]
[395119568,1764456646884,-500.0,0.00017808,2]
[395119569,1764456646893,-4051.0,0.00017818,2]
[395119570,1764456646902,-1060.44281,0.0001783,2]
[395119571,1764456646911,-664.0,0.00017847,2]
[395119572,1764456646920,-500.0,0.00017847,2]
[395119573,1764456646930,-177.39,0.00017908,2]
[395119574,1764456646940,-500.0,0.00017945,2]
[395119575,1764456646949,-664.0,0.00017984,2]
[395119576,1764456646957,-500.0,0.00017984,2]
[395119577,1764456646966,-610.0,0.00018013,2]
[395119578,1764456646975,-3441.0,0.00018013,2]
[395119579,1764456646984,-1603.0,0.00018013,2]
[395119580,1764456646993,-1321.0,0.00018013,2]
[395119581,1764456647002,-640.0,0.00018013,2]
[395119582,1764456647011,-1258.0,0.00018013,2]
[395119583,1764456647020,-562.0,0.00018013,2]
[395119584,1764456647029,-6505.0,0.00018013,2]
[395119585,1764456647038,-2718.0,0.00018013,2]
[395119586,1764456647048,-168.0,0.00018015,2]
[395119587,1764456647056,-900.0,0.00018036,2]
[395119588,1764456647065,-156.68871822,0.00018047,2]
[395119589,1764456647074,-1500.0,0.00018068,2]
[395119590,1764456647083,-1077.96429951,0.00018068,2]
[395119591,1764456647093,-1500.0,0.00018068,2]
[395119592,1764456647102,-1330.57081561,0.00018068,2]
[395119593,1764456647111,-1500.0,0.00018068,2]
[395119594,1764456647120,-1500.0,0.00018068,2]
[395119595,1764456647129,-1500.0,0.00018068,2]
[395119596,1764456647138,-1500.0,0.00018068,2]
[395119597,1764456647147,-1500.0,0.00018068,2]
[395119598,1764456647156,-1319.21380805,0.00018068,2]
[395119599,1764456647165,-1001.21506587,0.00018068,2]
[395119600,1764456647174,-1500.0,0.00018068,2]
[395119601,1764456647183,-508.17996373,0.00018068,2]
[395119602,1764456647191,-1362.64564803,0.00018068,2]
[395119603,1764456647200,-783.26620629,0.00018068,2]
[395119604,1764456647209,-1008.1346572,0.00018068,2]
[395119605,1764456647218,-1500.0,0.00018068,2]
[395119606,1764456647227,-1500.0,0.00018068,2]
[395119607,1764456647236,-1500.0,0.00018068,2]
[395119608,1764456647246,-1500.0,0.00018068,2]
[395119609,1764456647255,-1500.0,0.00018068,2]
[395119610,1764456647264,-1616.36173236,0.00018068,2]
[395119611,1764456647273,-1500.0,0.00018068,2]
[395119612,1764456647282,-500.0,0.00018082,2]
[395119613,1764456647291,-1000.0,0.00018082,2]
[395119614,1764456647299,-476.6,0.00018107,2]
[395119615,1764456647308,-664.0,0.00018121,2]
[395119616,1764456647317,-244.81998674,0.00018121,2]
[395119617,1764456647325,-168.0,0.00018156,2]
[395119618,1764456647335,-2500.0,0.00018164,2]
[395119619,1764456647348,-2500.0,0.00018164,2]
[395119620,1764456647357,-2500.0,0.00018164,2]
[395119621,1764456647366,-2500.0,0.00018164,2]
[395119622,1764456647374,-1511.0,0.00018168,2]
[395119623,1764456647384,-1511.0,0.00018189,2]
[395119624,1764456647393,-150.0,0.00018191,2]
[395119625,1764456647403,-185.387,0.00018191,2]
[395119626,1764456647413,-150.0,0.00018191,2]
[395119627,1764456647422,-250.0,0.00018191,2]
[395119628,1764456647431,-150.0,0.00018191,2]
[395119629,1764456647442,-150.0,0.00018191,2]
[395119630,1764456647453,-150.0,0.00018191,2]
[395119631,1764456647463,-150.0,0.00018191,2]
[395119632,1764456647472,-172.72143704,0.00018215,5]
[395119633,1764456647481,-500.0,0.00018219,2]
[395119634,1764456647490,-664.0,0.00018258,2]
[395119635,1764456647499,-736.0,0.00018324,2]
[395119636,1764456647508,-168.0,0.00018341,2]
[395119637,1764456647517,-1000.0,0.00018341,2]
[395119638,1764456647526,-500.0,0.00018356,2]
[395119639,1764456647535,-34290.16,0.00018356,2]
[395119640,1764456647544,-664.0,0.00018395,2]
[395119641,1764456647553,-168.0,0.00018474,2]
[395119642,1764456647562,-176.17,0.00018489,2]
[395119643,1764456647572,-500.0,0.00018493,2]
[395119644,1764456647580,-664.0,0.00018532,2]
[395119645,1764456647590,-182.96,0.00018548,2]
[395119646,1764456647599,-166.66,0.00018588,2]
[395119647,1764456647608,-1650.54892794,0.00018616,2]
[395119648,1764456647617,-615.0167694,0.00018616,2]
[395119649,1764456647626,-667.97644675,0.00018616,2]
[395119650,1764456647635,-1012.547964,0.00018616,2]
[395119651,1764456647644,-1880.42304806,0.00018616,2]
[395119652,1764456647654,-1492.70829598,0.00018616,2]
[395119653,1764456647663,-2012.60268871,0.00018616,2]
[395119654,1764456647672,-883.56702396,0.00018616,2]
[395119655,1764456647681,-1454.98304928,0.00018616,2]
[395119656,1764456647690,-283.4470219,0.00018616,2]
[395119657,1764456647699,-2000.0,0.00018616,2]
[395119658,1764456647709,-2000.0,0.00018616,2]
[395119659,1764456647718,-558.19890298,0.00018616,2]
[395119660,1764456647727,-310.27266045,0.00018616,2]
[395119661,1764456647737,-500.0,0.0001863,2]
[395119662,1764456647746,-176.17,0.00018636,2]
[395119663,1764456647755,-680.47837896,0.00018669,2]
[395119664,1764456647764,-3000.0,0.00018712,2]
[395119665,1764456647773,-3134.06619687,0.00018712,2]
[395119666,1764456647782,-462.99365393,0.00018712,2]
[395119667,1764456647791,-3000.0,0.00018712,2]
[395119668,1764456647800,-2907.5721506,0.00018726,2]
[395119669,1764456647809,-12427.1364608,0.00018726,2]
[395119670,1764456647818,-1000.0,0.0001876,2]
[395119671,1764456647829,-500.0,0.00018767,2]
[395119672,1764456647839,-176.17,0.00018784,2]
[395119673,1764456647851,-150.74,0.000188,2]
[395119674,1764456647860,-150.74,0.000188,2]
[395119675,1764456647872,-177.39,0.00018817,2]
[395119676,1764456647881,-1060.44281,0.0001883,2]
[395119677,1764456647891,-346.92554585,0.00018887,2]
[395119678,1764456647903,-287.61899177,0.00018887,2]
[395119679,1764456647912,-322.6107,0.00018887,2]
[395119680,1764456647921,-599.60298507,0.00018888,2]
[395119681,1764456647931,-1000.0,0.00018889,2]
[395119682,1764456647940,-500.0,0.00018904,2]
[395119683,1764456647951,-1600.0,0.00018932,2]
[395119684,1764456647962,-172.72143704,0.0001894,6]
[395119685,1764456647971,-548.75,0.00018954,2]
[395119686,1764456647979,-25711.6238237,0.00019,2]
[395119687,1764456647988,-610.14928927,0.00019,2]
[395119688,1764456648000,-300.0,0.00019,2]
[395119689,1764456648009,-2557.06699941,0.00019,2]
[395119690,1764456648018,-1000.0,0.00019013,2]
[395119691,1764456648027,-500.0,0.00019041,2]
[395119692,1764456648037,-200.0,0.00019082,2]
[395119693,1764456648046,-1000.0,0.000191,2]
[395119694,1764456648055,-2500.0,0.00019164,2]
[395119695,1764456648066,-2500.0,0.00019164,2]
[395119696,1764456648075,-500.0,0.0001917,2]
[395119697,1764456648084,-500.0,0.0001917,2]
[395119698,1764456648093,-500.0,0.0001917,2]
[395119699,1764456648104,-700.0,0.0001917,2]
[395119700,1764456648114,-1000.0,0.0001917,2]
[395119701,1764456648124,-1000.0,0.0001917,2]
[395119702,1764456648133,-1000.0,0.0001917,2]
[395119703,1764456648142,-1200.0,0.0001917,2]
[395119704,1764456648151,-500.0,0.0001917,2]
[395119705,1764456648160,-1000.0,0.0001917,2]
[395119706,1764456648170,-500.0,0.00019178,2]
[395119707,1764456648180,-151.0,0.00019178,2]
[395119708,1764456648192,-151.0,0.00019178,2]
[395119709,1764456648206,-151.0,0.00019178,2]
[395119710,1764456648216,-151.0,0.00019178,2]
[395119711,1764456648226,-151.0,0.00019178,2]
[395119712,1764456648235,-151.0,0.00019178,2]
[395119713,1764456648244,-151.0,0.00019178,2]
[395119714,1764456648254,-151.0,0.00019178,2]
[395119715,1764456648263,-151.0,0.00019178,2]
[395119716,1764456648273,-151.0,0.00019178,2]
[395119717,1764456648282,-151.0,0.00019178,2]
[395119718,1764456648291,-151.0,0.00019178,2]
[395119719,1764456648299,-152.0,0.00019178,2]
[395119720,1764456648308,-152.0,0.00019178,2]
[395119721,1764456648318,-152.0,0.00019178,2]
[395119722,1764456648327,-151.0,0.00019178,2]
[395119723,1764456648337,-151.0,0.00019178,2]
[395119724,1764456648348,-151.0,0.00019178,2]
[395119725,1764456648357,-151.0,0.00019178,2]
[395119726,1764456648367,-151.0,0.00019178,2]
[395119727,1764456648375,-151.0,0.00019178,2]
[395119728,1764456648386,-157.0,0.00019178,2]
[395119729,1764456648396,-152.0,0.00019178,2]
[395119730,1764456648405,-152.0,0.00019178,2]
[395119731,1764456648415,-209.6337216,0.00019178,2]
[395119732,1764456648423,-152.0,0.00019178,2]
[395119733,1764456648432,-152.0,0.00019178,2]
[395119734,1764456648441,-152.0,0.00019178,2]
[395119735,1764456648452,-152.0,0.00019178,2]
[395119736,1764456648462,-152.0,0.00019178,2]
[395119737,1764456648471,-152.0,0.00019178,2]
[395119738,1764456648482,-152.0,0.00019178,2]
[395119739,1764456648491,-152.0,0.00019178,2]
[395119740,1764456648499,-152.0,0.00019178,2]
[395119741,1764456648509,-152.0,0.00019178,2]
[395119742,1764456648518,-831.0,0.00019178,2]
[395119743,1764456648528,-151.0,0.00019178,2]
[395119744,1764456648538,-264.899652,0.00019178,2]
[395119745,1764456648547,-264.899652,0.00019178,2]
[395119746,1764456648556,-264.899652,0.00019178,2]
[395119747,1764456648565,-264.899652,0.00019178,2]
[395119748,1764456648574,-151.0,0.00019178,2]
[395119749,1764456648583,-2988.4592092,0.0001918,2]
[395119750,1764456648591,-23648.4620736,0.00019187,2]
[395119751,1764456648600,-150.0,0.000192,7]
[395119752,1764456648609,-166.66,0.00019201,2]
[395119753,1764456648619,-648.7670396,0.00019202,2]
[395119754,1764456648628,-2772.8689486,0.00019202,2]
[395119755,1764456648638,-548.75,0.00019228,2]
[395119756,1764456648648,-1083.0691325,0.0001923,2]
[395119757,1764456648658,-3500.0,0.0001926,2]
[395119758,1764456648667,-3500.0,0.0001926,2]
[395119759,1764456648676,-330.06,0.00019283,2]
[395119760,1764456648686,-823.0,0.00019293,2]
[395119761,1764456648698,-250.0,0.00019315,2]
[395119762,1764456648707,-182.96,0.00019354,2]
[395119763,1764456648718,-250.0,0.00019422,2]
[395119764,1764456648727,-1000.0,0.00019437,2]
[395119765,1764456648736,-1000.0,0.00019438,2]
[395119766,1764456648745,-548.75,0.00019502,2]
[395119767,1764456648755,-330.06,0.00019557,2]
[395119768,1764456648764,-3292.0,0.00019571,2]
[395119769,1764456648773,-172.72143704,0.00019664,8]
[395119770,1764456648782,-666.8153819,0.00019669,2]
[395119771,1764456648791,-5276.6851297,0.00019676,2]
[395119772,1764456648800,-1252.0,0.00019707,2]
[395119773,1764456648809,-151.0,0.00019712,2]
[395119774,1764456648818,-153.956112,0.00019712,2]
[395119775,1764456648827,-151.0,0.00019712,2]
[395119776,1764456648837,-151.0,0.00019712,2]
[395119777,1764456648846,-151.0,0.00019712,2]
[395119778,1764456648855,-151.0,0.00019712,2]
[395119779,1764456648865,-151.0,0.00019712,2]
[395119780,1764456648876,-151.0,0.00019712,2]
[395119781,1764456648885,-151.0,0.00019712,2]
[395119782,1764456648895,-151.0,0.00019712,2]
[395119783,1764456648908,-151.0,0.00019712,2]
[395119784,1764456648917,-184.695711,0.00019712,2]
[395119785,1764456648926,-151.0,0.00019712,2]
[395119786,1764456648935,-151.0,0.00019712,2]
[395119787,1764456648944,-151.0,0.00019712,2]
[395119788,1764456648952,-151.0,0.00019712,2]
[395119789,1764456648963,-151.0,0.00019712,2]
[395119790,1764456648971,-3000.0,0.00019712,2]
[395119791,1764456648981,-177.37163808,0.00019712,2]
[395119792,1764456648990,-156.587,0.00019726,2]
[395119793,1764456648999,-151.0,0.00019728,2]
[395119794,1764456649008,-151.0,0.00019728,2]
[395119795,1764456649017,-151.0,0.00019728,2]
[395119796,1764456649026,-151.0,0.00019728,2]
[395119797,1764456649035,-151.0,0.00019728,2]
[395119798,1764456649044,-241.665389,0.00019728,2]
[395119799,1764456649052,-226.333308,0.00019731,2]
[395119800,1764456649061,-167.690573,0.00019731,2]
[395119801,1764456649072,-151.0,0.00019731,2]
[395119802,1764456649081,-151.0,0.00019731,2]
[395119803,1764456649090,-151.0,0.00019731,2]
[395119804,1764456649099,-151.0,0.00019731,2]
[395119805,1764456649108,-151.0,0.00019731,2]
[395119806,1764456649119,-215.076484,0.00019731,2]
[395119807,1764456649127,-215.076484,0.00019731,2]
[395119808,1764456649136,-215.076484,0.00019731,2]
[395119809,1764456649146,-215.076484,0.00019731,2]
[395119810,1764456649155,-151.0,0.00019731,2]
[395119811,1764456649164,-151.0,0.00019731,2]
[395119812,1764456649173,-151.0,0.00019731,2]
[395119813,1764456649183,-151.0,0.00019731,2]
[395119814,1764456649192,-151.0,0.00019731,2]
[395119815,1764456649201,-151.0,0.00019731,2]
[395119816,1764456649212,-151.0,0.00019731,2]
[395119817,1764456649222,-151.0,0.00019731,2]
[395119818,1764456649233,-548.75,0.00019776,2]
[395119819,1764456649243,-476.6,0.00019776,2]
[395119820,1764456649252,-151.0,0.00019808,2]
[395119821,1764456649261,-151.0,0.00019808,2]
[395119822,1764456649271,-494.402909,0.00019808,2]
[395119823,1764456649279,-151.0,0.00019808,2]
[395119824,1764456649290,-364.126776,0.00019808,2]
[395119825,1764456649300,-151.0,0.00019808,2]
[395119826,1764456649310,-364.126776,0.00019808,2]
[395119827,1764456649319,-151.0,0.00019808,2]
[395119828,1764456649328,-151.0,0.00019808,2]
[395119829,1764456649342,-364.126776,0.00019808,2]
[395119830,1764456649351,-151.0,0.00019808,2]
[395119831,1764456649360,-240.308303,0.00019808,2]
[395119832,1764456649368,-364.126776,0.00019808,2]
[395119833,1764456649377,-494.402909,0.00019808,2]
[395119834,1764456649386,-494.402909,0.00019808,2]
[395119835,1764456649395,-494.402909,0.00019808,2]
[395119836,1764456649404,-195.146017,0.00019808,2]
[395119837,1764456649413,-264.899652,0.00019808,2]
[395119838,1764456649422,-264.899652,0.00019808,2]
[395119839,1764456649431,-264.899652,0.00019808,2]
[395119840,1764456649440,-264.899652,0.00019808,2]
[395119841,1764456649450,-151.0,0.00019808,2]
[395119842,1764456649459,-151.0,0.00019808,2]
[395119843,1764456649467,-151.0,0.00019808,2]
[395119844,1764456649477,-151.0,0.00019808,2]
[395119845,1764456649489,-151.0,0.00019808,2]
[395119846,1764456649499,-151.0,0.00019808,2]
[395119847,1764456649510,-209.27637,0.00019808,2]
[395119848,1764456649519,-125.71456414,0.00019808,2]
[395119850,1764456651085,-151.0,0.00017,2]
[395119851,1764456651094,-119.2701,0.00018013,2]
[395119852,1764456651109,-132.7299,0.00018013,2]
[395119853,1764456651119,-25.28543586,0.00019808,2]
[395119854,1764456651129,-151.0,0.00019808,2]
[395119855,1764456651138,-151.0,0.00019808,2]
[395119856,1764456651147,-283.726001,0.00019808,2]
[395119857,1764456651156,-151.0,0.00019808,2]
[395119858,1764456651165,-283.726001,0.00019808,2]
[395119859,1764456651174,-151.0,0.00019808,2]
[395119860,1764456651183,-283.726001,0.00019808,2]
[395119861,1764456651192,-283.726001,0.00019808,2]
[395119862,1764456651200,-151.0,0.00019808,2]
[395119863,1764456651210,-151.0,0.00019808,2]
[395119864,1764456651218,-286.214456,0.00019808,2]
[395119865,1764456651228,-151.0,0.00019808,2]
[395119866,1764456651237,-151.0,0.00019808,2]
[395119867,1764456651246,-151.0,0.00019808,2]
[395119868,1764456651255,-151.0,0.00019808,2]
[395119869,1764456651264,-151.0,0.00019808,2]
[395119870,1764456651273,-151.0,0.00019808,2]
[395119871,1764456651282,-151.0,0.00019808,2]
[395119872,1764456651291,-151.0,0.00019808,2]
[395119873,1764456651300,-151.0,0.00019808,2]
[395119874,1764456651309,-151.0,0.00019808,2]
[395119875,1764456651319,-213.92908,0.00019808,2]
[395119876,1764456651328,-151.0,0.00019808,2]
[395119877,1764456651337,-151.0,0.00019808,2]
[395119878,1764456651346,-4000.0,0.00019808,2]
[395119879,1764456651356,-3406.39057389,0.00019808,2]
[395119880,1764456651367,-166.66,0.00019815,2]
[395119881,1764456651376,-1060.44281,0.0001983,2]
[395119882,1764456651385,-330.06,0.00019831,2]
[395119883,1764456651394,-3072.62,0.00019888,2]
[395119884,1764456651403,-500.0,0.0001997,2]
[395119885,1764456651413,-1000.0,0.0001997,2]
[395119886,1764456651421,-236.53,0.00019981,2]
[395119887,1764456651430,-1000.0,0.00019985,2]
[395119888,1764456651440,-414.2206697,0.0002,2]
[395119889,1764456651448,-200.0,0.0002,2]
[395119890,1764456651458,-1154.98807809,0.0002,5]
[395119891,1764456651467,-150.0,0.0002,2]
[395119892,1764456651476,-151.0,0.0002,2]
[395119893,1764456651485,-151.0,0.0002,2]
[395119894,1764456651494,-151.0,0.0002,2]
[395119895,1764456651504,-151.0,0.0002,2]
[395119896,1764456651513,-151.0,0.0002,2]
[395119897,1764456651522,-548.75,0.0002005,2]
[395119898,1764456651531,-330.06,0.00020105,2]
[395119899,1764456651542,-1000.0,0.00020116,2]
[395119900,1764456651552,-182.96,0.00020161,2]
[395119901,1764456651561,-151.0,0.00020187,2]
[395119902,1764456651570,-151.0,0.00020187,2]
[395119903,1764456651580,-151.0,0.00020187,2]
[395119904,1764456651589,-151.0,0.00020187,2]
[395119905,1764456651598,-151.0,0.00020187,2]
[395119906,1764456651608,-151.0,0.00020187,2]
[395119907,1764456651617,-151.0,0.00020187,2]
[395119908,1764456651626,-151.0,0.00020187,2]
[395119909,1764456651635,-151.0,0.00020187,2]
[395119910,1764456651644,-736.06,0.00020187,2]
[395119911,1764456651654,-500.0,0.00020188,2]
[395119912,1764456651663,-2000.0,0.00020188,2]
[395119913,1764456651673,-500.0,0.00020236,3]
[395119914,1764456651682,-310.52499877,0.00020256,2]
[395119915,1764456651692,-298.26089446,0.00020256,2]
[395119916,1764456651701,-334.5472959,0.00020256,2]
[395119917,1764456651711,-3500.0,0.0002026,2]
[395119918,1764456651720,-162.380719,0.00020274,2]
[395119919,1764456651730,-156.68871822,0.00020303,2]
[395119920,1764456651739,-548.8,0.00020324,2]
[395119921,1764456651748,-3454.95018247,0.00020356,2]
[395119922,1764456651758,-330.08,0.00020378,2]
[395119923,1764456651767,-172.72143704,0.00020389,9]
[395119924,1764456651778,-166.66,0.00020429,2]
[395119925,1764456651790,-1000.0,0.000205,2]
[395119926,1764456651799,-1000.0,0.00020533,2]
[395119927,1764456651808,-400.971178,0.00020548,2]
[395119928,1764456651818,-400.971178,0.00020548,2]
[395119929,1764456651827,-400.971178,0.00020548,2]
[395119930,1764456651837,-400.971178,0.00020548,2]
[395119931,1764456651847,-400.971178,0.00020548,2]
[395119932,1764456651857,-400.971178,0.00020548,2]
[395119933,1764456651867,-400.971178,0.00020548,2]
[395119934,1764456651876,-400.971178,0.00020548,2]
[395119935,1764456651886,-2000.0,0.000207,2]
[395119936,1764456651897,-1000.0,0.00020795,2]
[395119937,1764456651910,-597.62353283,0.00020808,2]
[395119938,1764456651920,-168.3888056,0.00020822,2]
[395119939,1764456651929,-1060.44281,0.0002083,2]
[395119940,1764456651939,-1267.41,0.00020845,2]
[395119941,1764456651948,-794.17025833,0.000209,2]
[395119942,1764456651957,-2863.395,0.000209,2]
[395119943,1764456651967,-206.785,0.000209,2]
[395119944,1764456651978,-1000.0,0.00020915,2]
[395119945,1764456651989,-182.96,0.00020967,2]
[395119946,1764456652000,-60231.266135,0.00021,2]
[395119947,1764456652011,-151.0,0.00021,2]
[395119948,1764456652020,-151.0,0.00021,2]
[395119949,1764456652031,-350.0,0.00021,2]
[395119950,1764456652040,-151.0,0.00021,2]
[395119951,1764456652051,-151.0,0.00021,2]
[395119952,1764456652062,-151.0,0.00021,2]
[395119953,1764456652071,-151.0,0.00021,2]
[395119954,1764456652084,-151.0,0.00021,2]
[395119955,1764456652095,-151.0,0.00021,2]
[395119956,1764456652105,-151.0,0.00021,2]
[395119957,1764456652115,-151.0,0.00021,2]
[395119958,1764456652126,-151.0,0.00021,2]
[395119959,1764456652136,-610.0,0.00021013,2]
[395119960,1764456652145,-2856.142,0.00021013,2]
[395119961,1764456652154,-1603.0,0.00021013,2]
[395119962,1764456652164,-1321.0,0.00021013,2]
[395119963,1764456652173,-640.0,0.00021013,2]
[395119964,1764456652182,-1258.0,0.00021013,2]
[395119965,1764456652192,-562.0,0.00021013,2]
[395119966,1764456652202,-6505.0,0.00021013,2]
[395119967,1764456652212,-2718.0,0.00021013,2]
[395119968,1764456652221,-1600.0,0.00021036,2]
[395119969,1764456652233,-166.66,0.00021042,2]
[395119970,1764456652244,-1000.0,0.00021081,2]
[395119971,1764456652254,-172.72143704,0.00021114,11]
[395119972,1764456652265,-1118.0,0.00021122,2]
[395119973,1764456652275,-150.0,0.00021191,2]
[395119974,1764456652285,-150.0,0.00021191,2]
[395119975,1764456652294,-150.0,0.00021191,2]
[395119976,1764456652303,-150.0,0.00021191,2]
[395119977,1764456652312,-150.0,0.00021191,2]
[395119978,1764456652322,-2129.0,0.00021207,2]
[395119979,1764456652331,-2008.94472557,0.000213,2]
[395119980,1764456652343,-304.0,0.000213,2]
[395119981,1764456652352,-839.0,0.000213,2]
[395119982,1764456652361,-354.0,0.000213,2]
[395119983,1764456652371,-970.0,0.000213,2]
[395119984,1764456652380,-174.61919141,0.0002137,2]
[395119985,1764456652390,-476.6,0.00021444,2]
[395119986,1764456652399,-4609.0,0.00021528,2]
[395119987,1764456652408,-309.29654756,0.00021625,2]
[395119988,1764456652418,-346.92554585,0.00021625,2]
[395119989,1764456652427,-347.36937858,0.00021627,2]
[395119990,1764456652437,-1000.0,0.00021629,2]
[395119991,1764456652446,-166.66,0.00021656,2]
[395119992,1764456652454,-630.5139553,0.000217,2]
[395119993,1764456652463,-182.96,0.00021774,2]
[395119994,1764456652472,-1060.44281,0.0002183,2]
[395119995,1764456652481,-172.72143704,0.00021839,12]
[395119996,1764456652490,-500.0,0.00021884,2]
[395119997,1764456652499,-500.0,0.000219,2]
[395119998,1764456652507,-372.233628,0.00021918,2]
[395119999,1764456652516,-372.233628,0.00021918,2]
[395120000,1764456652525,-372.233628,0.00021918,2]
[395120001,1764456652535,-372.233628,0.00021918,2]
[395120002,1764456652544,-154.345669,0.00021918,2]
[395120003,1764456652553,-5000.0,0.00021918,2]
[395120004,1764456652562,-153.0,0.00021918,2]
[395120005,1764456652572,-153.0,0.00021918,2]
[395120006,1764456652581,-153.0,0.00021918,2]
[395120007,1764456652591,-153.0,0.00021918,2]
[395120008,1764456652601,-153.0,0.00021918,2]
[395120009,1764456652611,-153.0,0.00021918,2]